fUSD/lending_fUSD_20250606
["ID","MTS","AMOUNT","RATE_DAILY","PERIOD"]
[364641578,1749173447736,-151.0,0.00030164,7]
[364641579,1749173447746,-480.0,0.00030164,7]
[364641580,1749173447755,-424.72009939,0.00030164,7]
[364641581,1749173447765,-480.0,0.00030164,7]
[364641582,1749173447777,-174.32197,0.00030164,7]
[364641583,1749173447787,-480.0,0.00030164,7]
[364641584,1749173447797,-733.04,0.00030164,7]
[364641585,1749173447807,-500.0,0.00030164,7]
[364641586,1749173447817,-480.0,0.00030164,7]
[364641587,1749173447827,-483.15638685,0.00030164,7]
[364641588,1749173447837,-500.0,0.00030164,7]
[364641589,1749173447847,-234.748307,0.00030164,7]
[364641590,1749173447856,-480.0,0.00030164,7]
[364641591,1749173447867,-480.0,0.00030164,7]
[364641592,1749173447877,-480.0,0.00030164,7]
[364641593,1749173447887,-652.44,0.00030164,7]
[364641594,1749173447898,-420.0,0.00030164,7]
[364641595,1749173447907,-480.0,0.00030164,7]
[364641596,1749173447917,-480.0,0.00030164,7]
[364641597,1749173447926,-300.0,0.00030164,7]
[364641598,1749173447936,-500.0,0.00030164,7]
[364641599,1749173447946,-480.0,0.00030164,7]
[364641600,1749173447956,-500.0,0.00030164,7]
[364641601,1749173447966,-500.0,0.00030164,7]
[364641602,1749173447976,-500.0,0.00030164,7]
[364641603,1749173447986,-480.0,0.00030164,7]
[364641604,1749173447995,-500.0,0.00030164,7]
[364641605,1749173448005,-480.0,0.00030164,7]
[364641606,1749173448014,-480.0,0.00030164,7]
[364641607,1749173448024,-501.76,0.00030164,7]
[364641608,1749173448034,-480.0,0.00030164,7]
[364641609,1749173448044,-480.0,0.00030164,7]
[364641610,1749173448054,-534.720211,0.00030164,7]
[364641611,1749173448064,-480.0,0.00030164,7]
[364641612,1749173448074,-480.0,0.00030164,7]
[364641613,1749173448085,-480.0,0.00030164,7]
[364641614,1749173448095,-481.80185837,0.00030164,7]
[364641615,1749173448104,-484.84590691,0.00030164,7]
[364641616,1749173448114,-480.0,0.00030164,7]
[364641617,1749173448124,-480.0,0.00030164,7]
[364641618,1749173448134,-480.0,0.00030164,7]
[364641619,1749173448144,-480.0,0.00030164,7]
[364641620,1749173448154,-480.0,0.00030164,7]
[364641621,1749173448164,-462.17823279,0.00030164,7]
[364641622,1749173448173,-500.0,0.00030164,7]
[364641623,1749173448183,-500.0,0.00030164,7]
[364641624,1749173448193,-480.0,0.00030164,7]
[364641625,1749173448202,-500.0,0.00030164,7]
[364641626,1749173448213,-480.0,0.00030164,7]
[364641627,1749173448424,-500.0,0.00030164,7]
[364641628,1749173448434,-500.0,0.00030164,7]
[364641629,1749173448444,-500.0,0.00030164,7]
[364641630,1749173448454,-500.0,0.00030164,7]
[364641631,1749173448464,-204.83555534,0.00030164,7]
[364641632,1749173448473,-504.6020229,0.00030164,7]
[364641633,1749173448483,-480.0,0.00030164,7]
[364641634,1749173448493,-392.44503636,0.00030164,7]
[364641635,1749173448502,-480.0,0.00030164,7]
[364641636,1749173448512,-480.0,0.00030164,7]
[364641637,1749173448523,-480.0,0.00030164,7]
[364641638,1749173448534,-480.0,0.00030164,7]
[364641639,1749173448543,-480.0,0.00030164,7]
[364641640,1749173448554,-257.22397439,0.00030164,7]
[364641641,1749173448563,-480.0,0.00030164,7]
[364641642,1749173448573,-460.0,0.00030164,7]
[364641643,1749173448583,-480.0,0.00030164,7]
[364641644,1749173448593,-1205.7,0.00030164,7]
[364641645,1749173448605,-480.0,0.00030164,7]
[364641646,1749173448615,-480.0,0.00030164,7]
[364641647,1749173448624,-480.0,0.00030164,7]
[364641648,1749173448633,-480.0,0.00030164,7]
[364641649,1749173448643,-480.0,0.00030164,7]
[364641650,1749173448672,-665.02,0.00030164,7]
[364641651,1749173448681,-480.0,0.00030164,7]
[364641652,1749173448691,-480.0,0.00030164,7]
[364641653,1749173448700,-483.18961877,0.00030164,7]
[364641654,1749173448710,-480.0,0.00030164,7]
[364641655,1749173448719,-480.0,0.00030164,7]
[364641656,1749173448729,-480.0,0.00030164,7]
[364641657,1749173448738,-480.0,0.00030164,7]
[364641658,1749173448747,-480.0,0.00030164,7]
[364641659,1749173448757,-480.0,0.00030164,7]
[364641660,1749173448766,-391.85930849,0.00030164,7]
[364641661,1749173448775,-480.0,0.00030164,7]
[364641662,1749173448785,-1192.96,0.00030164,7]
[364641663,1749173448795,-483.91478241,0.00030164,7]
[364641664,1749173448805,-480.0,0.00030164,7]
[364641665,1749173448814,-480.0,0.00030164,7]
[364641666,1749173448824,-887.26,0.00030164,7]
[364641667,1749173448833,-480.0,0.00030164,7]
[364641668,1749173448843,-480.0,0.00030164,7]
[364641669,1749173448852,-480.0,0.00030164,7]
[364641670,1749173448862,-480.0,0.00030164,7]
[364641671,1749173448871,-480.0,0.00030164,7]
[364641672,1749173448880,-606.93062687,0.00030164,7]
[364641673,1749173448890,-480.0,0.00030164,7]
[364641674,1749173448899,-480.0,0.00030164,7]
[364641675,1749173448909,-424.21973206,0.00030164,7]
[364641676,1749173448919,-480.0,0.00030164,7]
[364641677,1749173448928,-420.0,0.00030164,7]
[364641678,1749173448937,-480.0,0.00030164,7]
[364641679,1749173448947,-480.0,0.00030164,7]
[364641680,1749173448956,-610.16,0.00030164,7]
[364641681,1749173448966,-783.17,0.00030164,7]
[364641682,1749173448975,-480.0,0.00030164,7]
[364641683,1749173448986,-480.0,0.00030164,7]
[364641684,1749173448995,-151.0,0.00030164,7]
[364641685,1749173449005,-480.0,0.00030164,7]
[364641686,1749173449015,-1011.41,0.00030164,7]
[364641687,1749173449026,-480.0,0.00030164,7]
[364641688,1749173449035,-580.54,0.00030164,7]
[364641689,1749173449045,-480.0,0.00030164,7]
[364641690,1749173449055,-151.0,0.00030164,7]
[364641691,1749173449065,-1040.56,0.00030164,7]
[364641692,1749173449076,-480.0,0.00030164,7]
[364641693,1749173449086,-480.0,0.00030164,7]
[364641694,1749173449095,-480.0,0.00030164,7]
[364641695,1749173449106,-500.0,0.00030164,7]
[364641696,1749173449115,-500.0,0.00030164,7]
[364641697,1749173449125,-500.0,0.00030164,7]
[364641698,1749173449136,-500.0,0.00030164,7]
[364641699,1749173449146,-500.0,0.00030164,7]
[364641700,1749173449156,-460.0,0.00030164,7]
[364641701,1749173449166,-500.0,0.00030164,7]
[364641702,1749173449176,-500.0,0.00030164,7]
[364641703,1749173449186,-480.0,0.00030164,7]
[364641704,1749173449196,-500.0,0.00030164,7]
[364641705,1749173449205,-480.0,0.00030164,7]
[364641706,1749173449215,-500.0,0.00030164,7]
[364641707,1749173449225,-500.0,0.00030164,7]
[364641708,1749173449235,-500.0,0.00030164,7]
[364641709,1749173449245,-480.0,0.00030164,7]
[364641710,1749173449254,-488.93,0.00030164,7]
[364641711,1749173449264,-500.0,0.00030164,7]
[364641712,1749173449274,-500.0,0.00030164,7]
[364641713,1749173449283,-480.0,0.00030164,7]
[364641714,1749173449294,-500.0,0.00030164,7]
[364641715,1749173449303,-500.0,0.00030164,7]
[364641716,1749173449313,-480.0,0.00030164,7]
[364641717,1749173449324,-480.0,0.00030164,7]
[364641718,1749173449333,-480.0,0.00030164,7]
[364641719,1749173449343,-480.0,0.00030164,7]
[364641720,1749173449352,-480.0,0.00030164,7]
[364641721,1749173449362,-480.0,0.00030164,7]
[364641722,1749173449371,-480.0,0.00030164,7]
[364641723,1749173449381,-480.0,0.00030164,7]
[364641724,1749173449392,-1374.64,0.00030164,7]
[364641725,1749173449402,-460.0,0.00030164,7]
[364641726,1749173449412,-480.0,0.00030164,7]
[364641727,1749173449422,-480.0,0.00030164,7]
[364641728,1749173449432,-480.0,0.00030164,7]
[364641729,1749173449442,-480.0,0.00030164,7]
[364641730,1749173449453,-482.80782387,0.00030164,7]
[364641731,1749173449463,-151.0,0.00030164,7]
[364641732,1749173449473,-480.0,0.00030164,7]
[364641733,1749173449483,-1079.98,0.00030164,7]
[364641734,1749173449493,-806.52,0.00030164,7]
[364641735,1749173449503,-363.42099512,0.00030164,7]
[364641736,1749173449513,-480.0,0.00030164,7]
[364641737,1749173449524,-480.0,0.00030164,7]
[364641738,1749173449535,-480.0,0.00030164,7]
[364641739,1749173449544,-402.24868973,0.00030164,7]
[364641740,1749173449553,-480.0,0.00030164,7]
[364641741,1749173449563,-480.0,0.00030164,7]
[364641742,1749173449574,-480.0,0.00030164,7]
[364641743,1749173449584,-480.0,0.00030164,7]
[364641744,1749173449593,-423.5649854,0.00030164,7]
[364641745,1749173449603,-480.0,0.00030164,7]
[364641746,1749173449613,-480.0,0.00030164,7]
[364641747,1749173449625,-500.28,0.00030164,7]
[364641748,1749173449635,-400.0,0.00030164,7]
[364641749,1749173449645,-449.43432606,0.00030164,7]
[364641750,1749173449655,-460.0,0.00030164,7]
[364641751,1749173449664,-500.0,0.00030164,7]
[364641752,1749173449674,-500.0,0.00030164,7]
[364641753,1749173449683,-500.0,0.00030164,7]
[364641754,1749173449693,-500.0,0.00030164,7]
[364641755,1749173449702,-480.0,0.00030164,7]
[364641756,1749173449711,-500.0,0.00030164,7]
[364641757,1749173449723,-500.0,0.00030164,7]
[364641758,1749173449732,-480.0,0.00030164,7]
[364641759,1749173449743,-500.0,0.00030164,7]
[364641760,1749173449754,-500.0,0.00030164,7]
[364641761,1749173449764,-480.0,0.00030164,7]
[364641762,1749173449774,-484.10847149,0.00030164,7]
[364641763,1749173449785,-480.0,0.00030164,7]
[364641764,1749173449797,-1000.0,0.00030164,42]
[364641765,1749173449808,-1230.11,0.00030164,7]
[364641766,1749173449819,-2033.87,0.00030164,7]
[364641767,1749173449829,-935.91,0.00030164,7]
[364641768,1749173449838,-480.0,0.00030164,7]
[364641769,1749173449849,-480.0,0.00030164,7]
[364641770,1749173449859,-421.03095052,0.00030164,7]
[364641771,1749173449869,-460.0,0.00030164,7]
[364641772,1749173449878,-480.0,0.00030164,7]
[364641773,1749173449888,-588.43576873,0.00030164,7]
[364641774,1749173449897,-480.0,0.00030164,7]
[364641775,1749173449908,-421.43329969,0.00030164,7]
[364641776,1749173449918,-480.0,0.00030164,7]
[364641777,1749173449928,-480.0,0.00030164,7]
[364641778,1749173449938,-480.0,0.00030164,7]
[364641779,1749173449947,-480.0,0.00030164,7]
[364641780,1749173449957,-618.11668205,0.00030164,7]
[364641781,1749173449966,-485.01650179,0.00030164,7]
[364641782,1749173449975,-740.01,0.00030164,7]
[364641783,1749173449984,-1002.55612585,0.00030164,7]
[364641784,1749173449993,-480.0,0.00030164,7]
[364641785,1749173450003,-480.0,0.00030164,7]
[364641786,1749173450014,-480.0,0.00030164,7]
[364641787,1749173450024,-480.0,0.00030164,7]
[364641788,1749173450036,-372.85010823,0.00030164,7]
[364641789,1749173450047,-480.0,0.00030164,7]
[364641790,1749173450057,-480.0,0.00030164,7]
[364641791,1749173450066,-480.0,0.00030164,7]
[364641792,1749173450077,-480.0,0.00030164,7]
[364641793,1749173450086,-233.37788062,0.00030164,7]
[364641794,1749173450096,-480.0,0.00030164,7]
[364641795,1749173450105,-480.0,0.00030164,7]
[364641796,1749173450114,-500.0,0.00030164,7]
[364641797,1749173450124,-480.0,0.00030164,7]
[364641798,1749173450134,-500.0,0.00030164,7]
[364641799,1749173450142,-500.0,0.00030164,7]
[364641800,1749173450153,-151.0,0.00030164,7]
[364641801,1749173450164,-500.0,0.00030164,7]
[364641802,1749173450174,-750.84,0.00030164,7]
[364641803,1749173450183,-500.0,0.00030164,7]
[364641804,1749173450193,-480.0,0.00030164,7]
[364641805,1749173450202,-500.0,0.00030164,7]
[364641806,1749173450213,-500.0,0.00030164,7]
[364641807,1749173450223,-500.0,0.00030164,7]
[364641808,1749173450232,-500.0,0.00030164,7]
[364641809,1749173450241,-500.0,0.00030164,7]
[364641810,1749173450250,-500.0,0.00030164,7]
[364641811,1749173450260,-500.0,0.00030164,7]
[364641812,1749173450269,-500.0,0.00030164,7]
[364641813,1749173450279,-500.0,0.00030164,7]
[364641814,1749173450288,-500.0,0.00030164,7]
[364641815,1749173450297,-645.84,0.00030164,7]
[364641816,1749173450306,-480.0,0.00030164,7]
[364641817,1749173450315,-986.51,0.00030164,7]
[364641818,1749173450325,-420.0,0.00030164,7]
[364641819,1749173450335,-1787.81,0.00030164,7]
[364641820,1749173450344,-217.681789,0.00030164,7]
[364641821,1749173450353,-563.19,0.00030164,7]
[364641822,1749173450364,-283.75273177,0.00030164,7]
[364641823,1749173450377,-485.47520729,0.00030164,7]
[364641824,1749173450390,-367.68949962,0.00030164,7]
[364641825,1749173450400,-480.0,0.00030164,7]
[364641826,1749173450410,-480.0,0.00030164,7]
[364641827,1749173450419,-480.0,0.00030164,7]
[364641828,1749173450428,-480.0,0.00030164,7]
[364641829,1749173450438,-480.0,0.00030164,7]
[364641830,1749173450447,-480.0,0.00030164,7]
[364641831,1749173450456,-480.0,0.00030164,7]
[364641832,1749173450466,-480.0,0.00030164,7]
[364641833,1749173450476,-480.0,0.00030164,7]
[364641834,1749173450487,-1039.01,0.00030164,7]
[364641835,1749173450497,-480.0,0.00030164,7]
[364641836,1749173450508,-574.85405891,0.00030164,7]
[364641837,1749173450518,-480.0,0.00030164,7]
[364641838,1749173450534,-596.4,0.00030164,7]
[364641839,1749173450544,-462.141833,0.00030164,7]
[364641840,1749173450553,-402.06977353,0.00030164,7]
[364641841,1749173450563,-480.0,0.00030164,7]
[364641842,1749173450573,-480.0,0.00030164,7]
[364641843,1749173450582,-600.0,0.00030164,2]
[364641844,1749173450591,-282.86029831,0.00030164,7]
[364641845,1749173450602,-150.0,0.00030164,7]
[364641846,1749173450612,-480.0,0.00030164,7]
[364641847,1749173450622,-150.0,0.00030164,7]
[364641848,1749173450632,-423.44974985,0.00030164,7]
[364641849,1749173450643,-150.0,0.00030164,7]
[364641850,1749173450655,-150.0,0.00030164,7]
[364641851,1749173450665,-480.0,0.00030164,7]
[364641852,1749173450674,-480.0,0.00030164,7]
[364641853,1749173450684,-480.0,0.00030164,7]
[364641854,1749173450693,-480.0,0.00030164,7]
[364641855,1749173450703,-876.32,0.00030164,7]
[364641856,1749173450712,-480.0,0.00030164,7]
[364641857,1749173450721,-480.0,0.00030164,7]
[364641858,1749173450731,-553.88534188,0.00030164,7]
[364641859,1749173450740,-460.0,0.00030164,7]
[364641860,1749173450749,-480.0,0.00030164,7]
[364641861,1749173450759,-230.18444448,0.00030164,7]
[364641862,1749173450768,-556.50938888,0.00030164,7]
[364641863,1749173450777,-940.54,0.00030164,7]
[364641864,1749173450862,-480.0,0.00030164,7]
[364641865,1749173450872,-1306.39,0.00030164,7]
[364641866,1749173450880,-1517.257341,0.00030164,7]
[364641867,1749173450891,-480.0,0.00030164,7]
[364641868,1749173450902,-480.0,0.00030164,7]
[364641869,1749173450915,-485.82111584,0.00030164,7]
[364641870,1749173450926,-420.8740471,0.00030164,7]
[364641871,1749173450936,-463.82522136,0.00030164,7]
[364641872,1749173450946,-264.90746622,0.00030164,7]
[364641873,1749173451499,-783.71570954,0.00030164,7]
[364641874,1749173451595,2000.0,0.00035,120]
[364641875,1749173452355,-468.63416524,0.00030164,7]
[364641876,1749173452367,-480.0,0.00030164,7]
[364641877,1749173452381,-421.91438487,0.00030164,7]
[364641878,1749173452397,-480.0,0.00030164,7]
[364641879,1749173452411,-488.6660373,0.00030164,7]
[364641880,1749173452422,-350.20507909,0.00030164,7]
[364641881,1749173452435,-491.31,0.00030164,7]
[364641882,1749173452450,-480.0,0.00030164,7]
[364641883,1749173452463,-153.870628,0.00030164,7]
[364641884,1749173452475,-367.35272582,0.00030164,7]
[364641885,1749173452488,-500.0,0.00030164,7]
[364641886,1749173452504,-75.91870648,0.00030164,7]
[364641887,1749173452520,-404.08129352,0.00030164,7]
[364641888,1749173452536,-512.0,0.00030164,7]
[364641889,1749173452549,-480.0,0.00030164,7]
[364641890,1749173452562,-480.0,0.00030164,7]
[364641891,1749173452575,-480.0,0.00030164,7]
[364641892,1749173452587,-482.4837051,0.00030164,7]
[364641893,1749173452599,-480.0,0.00030164,7]
[364641894,1749173452613,-283.43500138,0.00030164,7]
[364641895,1749173452653,-904.05499862,0.00030164,7]
[364641896,1749173452666,-421.26020218,0.00030164,7]
[364641897,1749173452678,-480.0,0.00030164,7]
[364641898,1749173452690,-480.0,0.00030164,7]
[364641899,1749173452702,-899.668797,0.00030164,7]
[364641900,1749173452715,-481.87,0.00030164,7]
[364641901,1749173452727,-1166.11,0.00030164,7]
[364641902,1749173452739,-669.08,0.00030164,7]
[364641903,1749173452751,-480.0,0.00030164,7]
[364641904,1749173452763,-460.0,0.00030164,7]
[364641905,1749173452775,-480.0,0.00030164,7]
[364641906,1749173452789,-277.87652995,0.00030164,7]
[364641907,1749173452975,-790.00959205,0.00030164,7]
[364641908,1749173452988,-899.668797,0.00030164,7]
[364641909,1749173453000,-309.99128086,0.00030164,7]
[364641910,1749173453013,-903.21,0.00030164,7]
[364641911,1749173453025,-480.0,0.00030164,7]
[364641912,1749173453037,-1067.886122,0.00030164,7]
[364641913,1749173453052,-480.0,0.00030164,7]
[364641914,1749173453066,-772.72,0.00030164,7]
[364641915,1749173453081,-592.05,0.00030164,7]
[364641916,1749173453093,-1017.06,0.00030164,7]
[364641917,1749173453106,-480.0,0.00030164,7]
[364641918,1749173453119,-480.0,0.00030164,7]
[364641919,1749173453133,-482.13300627,0.00030164,7]
[364641920,1749173453146,-151.0,0.00030164,7]
[364641921,1749173453159,-480.0,0.00030164,7]
[364641922,1749173453172,-426.51158984,0.00030164,7]
[364641923,1749173453185,-480.0,0.00030164,7]
[364641924,1749173453197,-522.80003356,0.00030164,7]
[364641925,1749173453213,-1441.13996644,0.00030164,7]
[364641926,1749173453226,-480.0,0.00030164,7]
[364641927,1749173453239,-480.0,0.00030164,7]
[364641928,1749173453255,-480.0,0.00030164,7]
[364641929,1749173453268,-256.87442358,0.00030164,7]
[364641930,1749173453284,-1437.90557642,0.00030164,7]
[364641931,1749173453297,-480.0,0.00030164,7]
[364641932,1749173453310,-481.12712862,0.00030164,7]
[364641933,1749173453323,-480.0,0.00030164,7]
[364641934,1749173453339,-1555.49,0.00030164,7]
[364641935,1749173453352,-480.0,0.00030164,7]
[364641936,1749173453364,-480.0,0.00030164,7]
[364641937,1749173453378,-152.40098,0.00030164,7]
[364641938,1749173453391,-424.59065547,0.00030164,7]
[364641939,1749173453404,-476.70011645,0.00030164,7]
[364641940,1749173453456,-767.00330666,0.00030164,7]
[364641941,1749173453471,-4222.90657689,0.00030164,7]
[364641942,1749173453484,-385.16149395,0.00030164,7]
[364641943,1749173453499,-94.83850605,0.00030164,7]
[364641944,1749173453511,-480.0,0.00030164,7]
[364641945,1749173453525,-480.0,0.00030164,7]
[364641946,1749173453539,-480.0,0.00030164,7]
[364641947,1749173453552,-480.0,0.00030164,7]
[364641948,1749173453565,-664.61,0.00030164,7]
[364641949,1749173453580,-480.0,0.00030164,7]
[364641950,1749173453593,-10491.63,0.00030164,7]
[364641951,1749173453606,-1886.66,0.00030164,7]
[364641952,1749173453619,-1095.22,0.00030164,7]
[364641953,1749173453631,-151.0,0.00030164,7]
[364641954,1749173453643,-3074.54,0.00030164,7]
[364641955,1749173453655,-480.0,0.00030164,7]
[364641956,1749173453668,-478.74017735,0.00030164,7]
[364641957,1749173455107,-163.2,0.00029998,2]
[364641958,1749173455118,-1129.76982265,0.00030164,7]
[364641959,1749173455128,-314.83554549,0.00030164,7]
[364641960,1749173455141,-165.16445451,0.00030164,7]
[364641961,1749173455150,-480.0,0.00030164,7]
[364641962,1749173455159,-480.0,0.00030164,7]
[364641963,1749173455168,-480.0,0.00030164,7]
[364641964,1749173455177,-423.50888103,0.00030164,7]
[364641965,1749173455187,-527.03,0.00030164,7]
[364641966,1749173455196,-218.14686187,0.00030164,7]
[364641967,1749173455208,-261.85313813,0.00030164,7]
[364641968,1749173455217,-726.42253,0.00030164,7]
[364641969,1749173455226,-480.0,0.00030164,7]
[364641970,1749173455236,-131.72433187,0.00030164,7]
[364641971,1749173455468,-801.9692,0.00030164,7]
[364641972,1749173455480,-500.0,0.00030164,7]
[364641973,1749173455492,-387.19646813,0.00030164,7]
[364641974,1749173455502,-1496.12320609,0.00030164,7]
[364641975,1749173455523,-1677.71679391,0.00030164,7]
[364641976,1749173455537,-719.8,0.00030164,7]
[364641977,1749173455547,-480.0,0.00030164,7]
[364641978,1749173455557,-480.0,0.00030164,2]
[364641979,1749173455566,-839.55,0.00030164,7]
[364641980,1749173455577,-481.03340382,0.00030164,7]
[364641981,1749173455586,-726.42253,0.00030164,7]
[364641982,1749173455596,-480.0,0.00030164,7]
[364641983,1749173455606,-151.0,0.00030164,7]
[364641984,1749173455615,-480.0,0.00030164,7]
[364641985,1749173455625,-480.0,0.00030164,7]
[364641986,1749173455634,-1186.6,0.00030164,7]
[364641987,1749173455644,-480.0,0.00030164,7]
[364641988,1749173455653,-747.68,0.00030164,7]
[364641989,1749173455663,-480.0,0.00030164,7]
[364641990,1749173455673,-480.0,0.00030164,7]
[364641991,1749173455682,-492.42992259,0.00030164,7]
[364641992,1749173455692,-963.08,0.00030164,7]
[364641993,1749173455701,-664.233657,0.00030164,7]
[364641994,1749173455710,-480.0,0.00030164,7]
[364641995,1749173455720,-480.0,0.00030164,7]
[364641996,1749173455729,-1144.69,0.00030164,7]
[364641997,1749173455739,-900.85,0.00030164,7]
[364641998,1749173455749,-386.88267603,0.00030164,7]
[364641999,1749173455758,-480.0,0.00030164,7]
[364642000,1749173455767,-480.0,0.00030164,7]
[364642001,1749173455777,-480.0,0.00030164,7]
[364642002,1749173455786,-480.0,0.00030164,7]
[364642003,1749173455795,-49.02804015,0.00030164,7]
[364642004,1749173455810,-430.97195985,0.00030164,7]
[364642005,1749173455820,-664.233657,0.00030164,7]
[364642006,1749173455829,-475.42936116,0.00030164,7]
[364642007,1749173466808,4654.42,0.00035,120]
[364642008,1749173517039,181.89308822,0.0003561,120]
[364642009,1749173528182,2769.9864745,0.00035616,120]
[364642010,1749173547502,5000.0,0.00035616,120]
[364642011,1749173566853,6696.0,0.00035616,120]
[364642012,1749173640846,163.25716,0.0003561,120]
[364642013,1749173644026,200.18855613,0.00035616,120]
[364642016,1749173732897,396.54,0.00035,120]
[364642018,1749173782485,1000.0,0.000356,120]
[364642019,1749173788439,189.0,0.0003561,120]
[364642020,1749173805262,300.0,0.00035,120]
[364642021,1749173816932,4042.0,0.00035616,120]
[364642022,1749173837515,500.0,0.00035,120]
[364642023,1749173897235,200.0,0.00035,120]
[364642024,1749173911925,300.0,0.00035,120]
[364642025,1749173928436,191.507077,0.00035,120]
[364642026,1749173969743,159.16,0.00013699,2]
[364642028,1749174152751,510000.0,0.00035616,120]
[364642030,1749174199621,4579.0,0.00035616,120]
[364642032,1749174330061,900.0,0.00017,2]
[364642043,1749174513825,202686.82286018,0.00035616,120]
[364642046,1749174631614,-500.0,0.00024932,2]
[364642047,1749174631624,-305.98,0.00026095,2]
[364642048,1749174631634,-300.08,0.00026095,2]
[364642049,1749174631644,-53.31732893,0.00026228,2]
[364642050,1749174631751,-249.64267107,0.00026228,2]
[364642051,1749174631761,-301.61,0.00026228,2]
[364642052,1749174631771,-102.92134393,0.00026329,2]
[364642053,1749174631783,-397.07865607,0.00026329,2]
[364642054,1749174631793,-909.45,0.0002706,2]
[364642055,1749174631802,-600.0,0.00027425,3]
[364642056,1749174631811,-3141.612586,0.00027653,2]
[364642057,1749174631820,-1200.0,0.00027792,2]
[364642058,1749174631830,-302.22,0.00027793,2]
[364642059,1749174631839,-304.87,0.00027793,2]
[364642060,1749174631849,-500.0,0.0002789,2]
[364642061,1749174631859,-305.27,0.000284,2]
[364642062,1749174631868,-152.27,0.0002845,2]
[364642063,1749174631878,-98.80501885,0.00028472,2]
[364642064,1749174631891,-203.53498115,0.00028472,2]
[364642066,1749174631900,-305.27,0.00028472,2]
[364642068,1749174631910,-300.97,0.00028472,2]
[364642070,1749174631919,-301.93,0.00028472,2]
[364642073,1749174631929,-282.84,0.0002856,2]
[364642077,1749174631941,-1000.0,0.00028587,2]
[364642078,1749174631951,-157.62,0.00028626,2]
[364642080,1749174631960,-369.98996143,0.00028652,30]
[364642082,1749174632013,-786.20030613,0.00028652,30]
[364642356,1749174640153,-781.59973244,0.00028652,30]
[364642358,1749174640163,-150.0,0.00028659,7]
[364642360,1749174640172,-152.08508619,0.00028731,2]
[364642474,1749174665924,6000.0,0.0003561,120]
[364642475,1749174714483,2000.0,0.00035616,120]
[364642476,1749174738973,2000.0,0.00035616,120]
[364642478,1749174775306,2000.0,0.00035616,120]
[364642479,1749174795787,2000.0,0.00035616,120]
[364642481,1749174848448,200000.0,0.000356,120]
[364642482,1749174868400,200000.0,0.000356,120]
[364642483,1749174888204,200000.0,0.000356,120]
[364642484,1749174908536,200000.0,0.000356,120]
[364642485,1749174928195,200000.0,0.000356,120]
[364642486,1749175030909,452.3611479,0.00035616,120]
[364642487,1749175035733,20534.13,0.00035616,120]
[364642488,1749175058254,480.0,0.00035616,120]
[364642489,1749175068673,480.0,0.00035616,120]
[364642490,1749175093439,480.0,0.00035616,120]
[364642491,1749175122603,274.28571429,0.0002,4]
[364642492,1749175124890,205.71428571,0.0002,7]
[364642493,1749175129744,274.28571429,0.0002,4]
[364642494,1749175132112,205.71428571,0.0002,7]
[364642495,1749175137050,274.28571429,0.0002,4]